Cogmind - Beta 16.1 @@@ ROGUE MODE // 2026.03.21 @ 00:46:34 Player: Cica Result: Destroyed by D-53 Grenadier with Mini Grenade Launcher Performance ------------- Evolutions (1) 500 Regions Visited (4) 800 Robots Destroyed (8) 40 Value Destroyed (121) 121 Prototype IDs (0) 0 Alien Tech Used (0) 0 Bonus (14) 14 TOTAL SCORE: 1475 Bonus ------- Follower Combat Kills 14 Cogmind --------- Core Integrity 0/400 Matter 139/300 Energy 212/300 System Corruption 19% Temperature Cool (0) Movement Rolling (80) Location -9/Mines Parts ------- > --- POWER (2) -------- (None) > --- PROPULSION (3) --- Wheel Wheel > --- UTILITY (2) ------ Large Battery Seismic Detector > --- WEAPON (2) ------- (None) > --- INVENTORY (5) ---- (None) Peak State ------------ > --- POWER ------------ Ion Engine Ion Engine > --- PROPULSION ------- Aluminum Leg Aluminum Leg > --- UTILITY ---------- Small Storage Unit Medium Matter Pod > --- WEAPON ----------- Medium Laser Small Laser > --- INVENTORY -------- Light Ion Engine Light Treads Light Treads Small Laser Beam Cannon [Rating: 8] Favorites ----------- Power Ion Engine Engine Ion Engine Propulsion Aluminum Leg Treads Light Treads Leg Aluminum Leg Wheel Wheel Utility Small Storage Unit Device Heat Sink Storage Small Storage Unit Protection Medium Armor Plating Weapon Small Laser Energy Gun Small Laser Energy Cannon Beam Cannon Build | -11 -10 -10 -9 -9 ------- Run | Yrd Mat Min Mat Min Slots Evolved 2 | . . . 2 . Power 1 | . . . 1 . Propulsion 1 | . . . 1 . Utility . | . . . . . Weapon . | . . . . . Parts Attached 19 | 6 2 . 1 10 Power 3 | 1 . . 1 1 Engine 3 | 1 . . 1 1 Core . | . . . . . Reactor . | . . . . . Propulsion 6 | 2 . . . 4 Treads 2 | . . . . 2 Leg 2 | 2 . . . . Wheel 2 | . . . . 2 Hover . | . . . . . Flight . | . . . . . Utility 6 | 1 1 . . 4 Device 2 | . . . . 2 Storage 3 | 1 1 . . 1 Processor . | . . . . . Hackware . | . . . . . Protection 1 | . . . . 1 Artifact . | . . . . . Weapon 4 | 2 1 . . 1 Energy Gun 3 | 2 1 . . . Energy Cannon 1 | . . . . 1 Ballistic Gun . | . . . . . Ballistic Cannon . | . . . . . Launcher . | . . . . . Special Weapon . | . . . . . Impact Weapon . | . . . . . Slashing Weapon . | . . . . . Piercing Weapon . | . . . . . Special Melee Weapon . | . . . . . Unidentified Prototypes . | . . . . . Parts Lost 14 | . . . . 14 Power 3 | . . . . 3 Propulsion 4 | . . . . 4 Utility 3 | . . . . 3 Weapon 4 | . . . . 4 Highest Loss Streak 14 | . . . . 14 To Critical Strikes . | . . . . . Average Backups 5 | 1 5 6 6 5 Power 1 | . 1 2 1 . Propulsion 1 | . 2 2 2 1 Utility 1 | . . . 1 2 Weapon 1 | . 1 2 2 1 Tool/Special . | . . . . . Unused Backups . | . . . . . Power . | . . . . . Propulsion . | . . . . . Utility . | . . . . . Weapon . | . . . . . Tool/Special . | . . . . . Average Slot Usage (%) 83 | . 90 100 88 70 Engine 16 | . 14 14 22 16 Treads 1 | . . . . 2 Leg 21 | . 28 28 22 15 Storage 20 | . 18 28 22 17 Energy Gun 21 | . 28 28 22 14 Peak Build Rating 8 | 6 7 7 8 8 Average Rating 6 | 3 6 7 8 6 On Entrance 5 | . 6 7 7 8 Avg Prop Armor Cover (%) 11 | . . . . 11 Naked Turns 14 | . . . . 14 Heaviest Build 22 | 12 15 15 20 22 Greatest Support 40 | 20 20 20 20 40 Greatest Overweight (x) 4 | . . . . 4 Average Overweight (x) . | . . . . . Largest Inventory Capacity 8 | 8 8 8 8 8 Average Capacity 7 | 6 8 8 8 7 Most Carried 8 | 4 7 6 8 8 Average Carried 5 | 2 5 6 6 5 Final Capacity 8 | 8 8 8 8 5 Final Carried 8 | 4 6 6 8 . Class Distribution -------------------- 100% | Mutant Dominant Class ---------------- Mutant | -10/Materials Mutant | -10/Mines Mutant | -9/Materials Mutant | -9/Mines Resources | -11 -10 -10 -9 -9 ----------- Run | Yrd Mat Min Mat Min Matter Collected 459 | 190 80 . 77 112 Remotely . | . . . . . Salvage Created 239 | . 123 . 51 65 Parts 13 | . 10 . 3 . Haulers Intercepted . | . . . . . Recyclers Shooed . | . . . . . Parts Field Recycled . | . . . . . Retrieved Matter . | . . . . . Parts Self-Destructed . | . . . . . Prevented . | . . . . . Parts Restored . | . . . . . Kills | -11 -10 -10 -9 -9 ------- Run | Yrd Mat Min Mat Min Combat Hostiles Destroyed 13 | . 6 . 1 6 Melee 1 | . . . . 1 Guns 8 | . 6 . 1 1 Cannons 4 | . . . . 4 Classes Destroyed 4 | . 2 . 1 1 Watcher 1 | . 1 . . . Swarmer 6 | . 6 . . . Sentry 1 | . . . 1 . Assembled 6 | . . . . 6 Best Kill Streak 4 | . 3 . 1 4 Combat Bots Only 4 | . 3 . 1 4 Max Kills in Single Turn 2 | . 2 . 1 1 Gunslinging 1 | . 1 . . . Exploded . | . . . . . Melee 1 | . . . . 1 Uniques/NPCs Destroyed . | . . . . . Combat | -11 -10 -10 -9 -9 -------- Run | Yrd Mat Min Mat Min Hostile Shots Fired 151 | . 45 . 6 100 Missed 32 | . 10 . 4 18 Hits 119 | . 35 . 2 82 Melee 24 | . . . . 24 Projectile 95 | . 35 . 2 58 AOE 4 | . . . . 4 Critical Strikes 3 | . 1 . . 2 Part Disruptions 5 | . . . . 5 Damage Taken 1702 | . 285 . 32 1385 Core 474 | . 72 . . 402 Absorbed by Shields . | . . . . . Core Remaining (%) 85 | 100 . 71 . . Volleys Fired 48 | . 21 . 3 24 Largest 2 | . 2 . 2 2 Hottest 110 | . 90 . 90 110 Shots Fired 81 | . 40 . 6 35 Gun 67 | . 40 . 6 21 Cannon 14 | . . . . 14 Launcher . | . . . . . Special . | . . . . . Kinetic . | . . . . . Thermal 81 | . 40 . 6 35 Explosive . | . . . . . Electromagnetic . | . . . . . Robot Hit Streak 6 | . 4 . 4 6 Robot Miss Streak 8 | . 4 . 2 8 Penetration Max . | . . . . . Secondary Targets 2 | . 1 . . 1 Max Gunslinging Chain 1 | . 1 . . 1 Shots Hit Robots 39 | . 19 . 4 16 Core Hits 28 | . 8 . 2 18 Critical Kills . | . . . . . Critical Parts Destroyed . | . . . . . Critical Strikes . | . . . . . Melee Attacks . | . . . . . Impact . | . . . . . Slashing . | . . . . . Piercing . | . . . . . Sneak Attacks . | . . . . . Combat Hostiles . | . . . . . Follow-up Attacks . | . . . . . Damage Inflicted 531 | . 217 . 49 265 Guns 348 | . 217 . 49 82 Cannons 176 | . . . . 176 Explosions . | . . . . . Melee . | . . . . . Ramming 7 | . . . . 7 Kinetic . | . . . . . Thermal 524 | . 217 . 49 258 Explosive . | . . . . . Electromagnetic . | . . . . . Impact . | . . . . . Slashing . | . . . . . Piercing . | . . . . . Highest Corruption 19 | . . . . 19 Average Corruption 10 | . . . . 10 Corruption Purged . | . . . . . Corruption Blocked . | . . . . . Effects 7 | . . . . 7 Message Errors 1 | . . . . 1 Matter Fused 2 | . . . . 2 Heat Flow Errors 1 | . . . . 1 Energy Discharges 2 | . . . . 2 Misdirections 1 | . . . . 1 Overload Shots . | . . . . . Overflow Damage . | . . . . . Projectiles . | . . . . . Explosions . | . . . . . Melee . | . . . . . Knockbacks . | . . . . . Impact . | . . . . . Kinetic . | . . . . . Secondary . | . . . . . Self-Inflicted Damage 1 | . . . . 1 Shots . | . . . . . Rammed 8 | . . . . 8 Targets Rammed 9 | . . . . 9 Kicked . | . . . . . Crushed 1 | . . . . 1 Highest Temperature 750 | . 126 . 117 750 Average Temperature 179 | . 40 . 58 282 Received Heat Transfer 729 | . . . 9 720 Effects 23 | . . . . 23 Shutdowns 5 | . . . . 5 Energy Bleed 4 | . . . . 4 Interference 2 | . . . . 2 Matter Decay 5 | . . . . 5 Short Circuit 1 | . . . . 1 Damage (major) 6 | . . . . 6 Siege Activations . | . . . . . Martial Activations . | . . . . . Shielding Activations . | . . . . . Robots Disrupted . | . . . . . Combat Hostiles . | . . . . . Robots Corrupted . | . . . . . Combat Hostiles . | . . . . . Parts Fried . | . . . . . Impact Corruptions . | . . . . . Robots Melted . | . . . . . Combat Hostiles . | . . . . . Parts Melted 1 | . 1 . . . Heat Transferred 1240 | . 535 . 124 581 Parts Sabotaged . | . . . . . Parts Stolen . | . . . . . Parts Stripped . | . . . . . Power Chain Reactions . | . . . . . Alert | -11 -10 -10 -9 -9 ------- Run | Yrd Mat Min Mat Min Maximum Alert Level . | . . . . . Low Security (%) 100 | 100 100 100 100 100 Level 1 . | . . . . . Level 2 . | . . . . . Level 3 . | . . . . . Level 4 . | . . . . . Level 5 . | . . . . . High Security . | . . . . . Max Security . | . . . . . Peak Influence 70 | . 70 25 34 33 Initial 25 | . . 25 . 7 Average 9 | . 29 5 12 1 Influence Increases 239 | . 147 . 49 43 Destroy 0b10 Robot/C 180 | . 120 . 20 40 Destroy 0b10 Robot/NC 5 | . 5 . . . Destroy Leader 32 | . 22 . 10 . Allied During Kill 7 | . . . 4 3 Lose Combat Pursuer 15 | . . . 15 . Influence Decreases 239 | . 80 67 30 62 Entered New Map 54 | . . 42 . 12 Time Decay 162 | . 80 25 30 27 Lost Ally 23 | . . . . 23 Squads Dispatched . | . . . . . Investigation . | . . . . . Extermination . | . . . . . Reinforcement . | . . . . . Assault . | . . . . . Garrison . | . . . . . Intercept . | . . . . . Searches Triggered . | . . . . . Construction Impeded . | . . . . . Haulers Reinforced . | . . . . . Active Scanning Responses . | . . . . . Cargo Convoy Interrupts . | . . . . . Stealth | -11 -10 -10 -9 -9 --------- Run | Yrd Mat Min Mat Min Distress Signals 1 | . . . 1 . Communications Jammed . | . . . . . Distress Signals . | . . . . . Times Spotted 27 | . 9 . 1 17 Peak Tracking Total 9 | . 3 . 2 9 Tactical Retreats 4 | . . . 1 3 Traps | -11 -10 -10 -9 -9 ------- Run | Yrd Mat Min Mat Min Traps Triggered . | . . . . . Indirectly . | . . . . . Trap Hack Attempts . | . . . . . Triggered . | . . . . . Disarmed . | . . . . . Reprogrammed . | . . . . . Reused . | . . . . . Traps Extracted . | . . . . . Installed . | . . . . . Triggered . | . . . . . Machines | -11 -10 -10 -9 -9 ---------- Run | Yrd Mat Min Mat Min Machines Disabled . | . . . . . Max in Single Turn . | . . . . . Machines Repaired . | . . . . . Machines Dismantled . | . . . . . Machines Sabotaged . | . . . . . Overloaded Fab Kills . | . . . . . Hacking | -11 -10 -10 -9 -9 --------- Run | Yrd Mat Min Mat Min Machines Accessed 1 | . 1 . . . Terminals 1 | . 1 . . . Fabricators . | . . . . . Repair Stations . | . . . . . Recycling Units . | . . . . . Scanalyzers . | . . . . . Garrison Access . | . . . . . Total Hacks 4 | . 4 . . . Successful 2 | . 2 . . . Failed 2 | . 2 . . . Catastrophic . | . . . . . Database Lockouts . | . . . . . Manual . | . . . . . Terminals 4 | . 4 . . . Fabricators . | . . . . . Repair Stations . | . . . . . Recycling Units . | . . . . . Scanalyzers . | . . . . . Garrison Access . | . . . . . Terminal Hacks 2 | . 2 . . . Alert Level 1 | . 1 . . . Locate Traps 1 | . 1 . . . Fabricator Hacks . | . . . . . Repair Station Hacks . | . . . . . Recycling Unit Hacks . | . . . . . Scanalyzer . | . . . . . Garrison Access Hacks . | . . . . . Unauthorized Hacks . | . . . . . Terminals . | . . . . . Fabricators . | . . . . . Repair Stations . | . . . . . Recycling Units . | . . . . . Scanalyzers . | . . . . . Garrison Access . | . . . . . Data Cores Recovered . | . . . . . Used . | . . . . . Hacking Detections 1 | . 1 . . . Full Trace Events 1 | . 1 . . . Feedback Events . | . . . . . Feedback Blocked . | . . . . . Robot Schematics Acquired . | . . . . . Robots Built . | . . . . . Authchips . | . . . . . Time . | . . . . . Total Robot Build Rating . | . . . . . Part Schematics Acquired . | . . . . . Parts Built . | . . . . . Authchips . | . . . . . Time . | . . . . . Total Part Build Rating . | . . . . . Part Studies Acquired . | . . . . . Parts Repaired . | . . . . . Time . | . . . . . Parts Recycled . | . . . . . Recycled Matter . | . . . . . Retrieved Matter . | . . . . . Retrieved Components . | . . . . . Parts Scanalyzed . | . . . . . Part Schematics Acquired . | . . . . . Parts Damaged . | . . . . . Bothacking | -11 -10 -10 -9 -9 ------------ Run | Yrd Mat Min Mat Min Used RIF Installer . | . . . . . Robots Hacked . | . . . . . Non-combat . | . . . . . Combat . | . . . . . Robot Hacks Applied . | . . . . . Relay Couplers Released . | . . . . . Fabnet Peak Effective % . | . . . . . Robots Rewired . | . . . . . Allies Hacked . | . . . . . Hacks Repelled . | . . . . . Allies | -11 -10 -10 -9 -9 -------- Run | Yrd Mat Min Mat Min Total Allies 2 | . . 2 . . Largest Group 2 | . . 2 2 2 Highest-Rated Group 38 | . . 38 38 38 Highest-Rated Ally 31 | . . 31 31 31 Total Orders . | . . . . . Ally Attacks 7 | . . . . 7 Total Damage 83 | . . . . 83 Kills 2 | . . . . 2 Allies Corrupted . | . . . . . Allies Melted . | . . . . . Intel | -11 -10 -10 -9 -9 ------- Run | Yrd Mat Min Mat Min Active Infowar (turns) 24 | . . . . 24 Seismic 24 | . . . . 24 Robot Analysis Total . | . . . . . Derelict Logs Recovered . | . . . . . Drone Launches . | . . . . . Drone Recoveries . | . . . . . Exploration | -11 -10 -10 -9 -9 ------------- Run | Yrd Mat Min Mat Min Turns Passed 926 | 59 192 174 113 388 Spaces Moved 623 | 39 105 146 84 249 Core 42 | 11 . . . 31 Treads 25 | . . . . 25 Legs 526 | 28 105 146 84 163 Wheels 30 | . . . . 30 Hover . | . . . . . Flight . | . . . . . Fastest Speed 50 | 50 120 120 120 50 Average Speed 118 | 100 120 120 120 119 Slowest Speed 250 | 120 120 120 120 250 Overloaded Moves . | . . . . . Propulsion Burnouts . | . . . . . Robots Hopped . | . . . . . Potential Cave-ins . | . . . . . Cave-ins Triggered . | . . . . . Exploration Rate (%) 20 | 4 28 27 11 34 Regions Visited 4 Branch Regions 2 Pre-discovered Areas . | . . . . . Known Exits Taken . | . . . . . Unknown Exits Taken 4 | 1 1 1 1 . Scrap Searched 1 | . . . . 1 Spaces Dug . | . . . . . Terrain Destroyed . | . . . . . Melee . | . . . . . Projectile . | . . . . . AOE . | . . . . . Terrain Rammed . | . . . . . Walls Destroyed . | . . . . . Machines Disabled . | . . . . . Actions | -11 -10 -10 -9 -9 --------- Run | Yrd Mat Min Mat Min Total 723 | 59 130 145 90 299 Wait 5 | 5 . . . . Move 619 | 38 104 145 83 249 Hop . | . . . . . Pick Up 19 | 10 3 . 3 3 Fast Attach . | . . . . . Attach 19 | 6 1 . 1 11 Detach . | . . . . . Swap 3 | . 1 . . 2 Drop 1 | . . . . 1 Fire 48 | . 21 . 3 24 Melee . | . . . . . Ram 1 | . . . . 1 Kick . | . . . . . Crush 8 | . . . . 8 Escape Stasis . | . . . . . Rewire . | . . . . . Trap . | . . . . . Miscellaneous . | . . . . . Route ------- -11/Scrapyard -10/Materials -10/Mines -9/Materials -9/Mines History --------- Turn | Location | Event 13 | -11/Scrapyard | Discovered new exit (range 15) 60 | -11/Scrapyard | Entered Materials 155 | -10/Materials | Discovered new exit (range 13) 252 | -10/Materials | Entered Mines 261 | -10/Mines | Met a Derelict bent on vengeance 261 | -10/Mines | Discovered new exit (range 16) 310 | -10/Mines | Build established: Mutant 426 | -10/Mines | Entered Materials 426 | -9/Materials | Accompanied by 2 allies 426 | -9/Materials | Evolved 2 slots: Power x1, Propulsion x1 436 | -9/Materials | Led the pair of lost Derelicts to an unsafe place 523 | -9/Materials | Discovered new exit (range 9) 539 | -9/Materials | Entered Mines 539 | -9/Mines | Accompanied by 2 allies 633 | -9/Mines | Assembled infested the area 638 | -9/Mines | Assisted by a Guerilla fighting off Assembled 826 | -9/Mines | System corruption reached 10% 840 | -9/Mines | Core integrity fell below 50% 917 | -9/Mines | Lost 14 parts (3p4n3u4w) 923 | -9/Mines | Core integrity fell below 20% 927 | -9/Mines | Destroyed by D-53 Grenadier with Mini Grenade Launcher Last Messages --------------- 00886_ System corrupted by crushing effect (+3). 00886_ Slammed into as-60454. 00889_ System corrupted: Energy discharge (-30). 00892_ as-00509 sneak attacks. 00892_ K-01 Serf knocked back. 00895_ K-01 Serf destroyed. 00895_ Acquired Seismic Detector. 00897_ Acquired Wheel. 00899_ K-01 Serf destroyed. 00899_ Acquired 18 matter. 00904_ System corrupted: Energy discharge (-59). 00914_ Acquired 7 matter. 00918_ K-01 Serf collects debris. 00920_ System corrupted: Matter fused (-10). 00920_ as-00509 destroyed. 00921_ K-01 Serf collects debris. 00922_ as-08664 destroyed. 00924_ as-60454 destroyed. 00925_ K-01 Serf collects debris. Map ----- +----------------------------------------------------+ | ??????##### ## #?## #??????# #?????????????? | | ??????# #?## #??????#!#?????????????? | | ??????# ######### #??????#%#?????????????? | | ??????# ????????# ##??????#%#########?????? | | ??????#?????????# ! #???????# %% #? | | ???????????????## #???????###########?????? | | ??????????????## ##?####?????????????????? | | ?????????????## ### ##????????????????? | | ?????????????# #????????????????? | | ?????????????# ### #???????????????? | | ?????????????## #?# #???????????????? | | ??????????????## #### ### #???????????????? | | ???????????????# ########?## ##???????????????? | | ???????????????# #?????????###????????????????? | | ???????????###?# ##????????????????????????????? | | ??????????? #?# ##?????????????????????????????? | | ???????????# #?# #??????????????????????????????? | | ???????????# #?#! #???###????????????????????????? | | ???????????# #?# ##### #????????????????????????? | | ???????????# #?# # # ##???????????????????????? | | ???????????# #?# #???????????????????????? | | ?????####### ### ##??##???#??????????????? | | ???? ### #?# #??????????????? | | ???? ## # #??????????????? | | ???? ######## ### #????????????? | | ??????#????????# @ k #???????????? | | ???????????????# d ######???????????? | | ?????????????# d # ????????????? | | ????????????# ## # ###?# ###???????????? | | ??????????? ???? r#### #?????#?????????????? | | ??????????? ?????### #?? # #???????????????????? | | ????????????????????# ?? #???????????????????? | | ???????????????????? ??# # #???????????????????? | | ????????????????????# ?? ## #???????????????????? | | ????????????????????? #? ?? ???????????????????? | | ????????????????????? ?? ?? #???????????????????? | | ????????????????????? #?? ????????????????????? | | ????????????????????? % ????????????????????????? | | ????????????????????? ? ????????????????????????? | | ????????????????????? ??????????????????????????? | | ?????????????????????????????????????????????????? | | ?????????????????????????????????????????????????? | | ?????????????????????????????????????????????????? | | ?????????????????????????????????????????????????? | | ?????????????????????????????????????????????????? | | ?????????????????????????????????????????????????? | | ?????????????????????????????????????????????????? | | ?????????????????????????????????????????????????? | | ?????????????????????????????????????????????????? | | ?????????????????????????????????????????????????? | +----------------------------------------------------+ Best States ------------- Heat Dissipation 38 Energy Generation 15 Energy Capacity 400 Matter Stores 400 Matter Capacity 400 Sight Range 16 Terrain Scan Density 10 Armor Coverage 225 Evasion (%) 55 Recoil Reduction 2 Item Schematics ----------------- None Robot Schematics ------------------ None Fabricated ------------ Nothing Repaired ---------- Nothing Studied --------- None Alien Tech Used ----------------- None Achievements -------------- System Compromised Challenges ------------ None Game ------ Seed NanofilamentsControlRigger Manual? 0 Play Time 00:14:10 Cumulative 2.9 hours Start 2026.03.21 @ 00:32:06 End 2026.03.21 @ 00:46:34 Sessions 1 Manual Loads 0 Difficulty Rogue Special Mode None Game No. 7 Rogue 7 Adventurer 0 Explorer 0 Win Type - Total 0 Types 0/0/0/0/0/0/0/0/0/0 Lore% 1 Gallery% 5 Achievement% 6 Wizard Run 0 Options --------- Layout 1 ASCII 0 Keyboard 0 Movement Mouse Keybinds 0 Fullscreen 2 Font 24/Smallcaps Map View 50x35 Zoom Use 10% Tactical HUD 1 Map Filters NONE Filters NONE Steam 1 RUN: 4bacb9fb-fc1a-4640-b78e-e198464edde4